[Event "Romania GP Final-Prel 2024"]
[Site "Alba Iulia"]
[Date "2024.11.25"]
[Round "3.2"]
[White "Stanciu, Alexandru-Ovidiu"]
[Black "Deac, Bogdan-Daniel"]
[Result "0-1"]
[ECO "B31"]
[WhiteElo "2337"]
[BlackElo "2687"]
[Annotator "TA"]
[PlyCount "76"]
[EventDate "2024.11.22"]
[EventType "tourn"]
[EventCountry "ROU"]
[SourceTitle "playchess.com"]
[Source "ChessBase"]
[SourceQuality "1"]
[TimeControl "900+5"]

{[%evp 9,76,17,25,10,16,-10,12,8,13,8,25,29,33,11,13,4,0,-7,0,-79,-78,-147,-158,-154,-159,-168,-170,-175,-133,-152,-131,-154,-143,-173,-170,-208,0,0,0,-224,-214,-212,-221,-199,-124,-121,-101,-297,-230,-443,-136,-120,-159,-227,-207,-329,-335,-352,-336,-340,0,-353,-236,-214,-191,-337,-331,-1746,-1622]} 1. e4 {[%emt 0:00:08]} c5 {[%emt 0:00:14]} 2. Nf3 {[%emt 0:00:05]} Nc6 {[%emt 0:00:11]} 3. Bb5 {[%emt 0:00:15]} g6 {[%emt 0:00:06]} 4. O-O {[%emt 0:00:07]} Bg7 {[%emt 0:00:03]} 5. Re1 {[%emt 0:00:17]} e5 {[%emt 0:01:18]} 6. a3 {[%emt 0:02:27][%cal Ob2b4]} Nge7 {[%emt 0:02:42]} 7. b4 {[%emt 0:00:30]} b6 {[%emt 0:01:39]} 8. Nc3 {[%emt 0:01:39] The position is equal.} O-O {[%emt 0:00:04]} 9. d3 {[%emt 0:00:48]} h6 {[%emt 0:00:08]} 10. Bc4 {[%emt 0:00:35]} d6 {[%emt 0:00:44]} 11. b5 {[%emt 0:02:57]} Nd4 {[%emt 0:04:28]} 12. Nxd4 {[%emt 0:02:22]} cxd4 {[%emt 0:00:05]} 13. Nd5 {[%emt 0:00:14]} Be6 {[%emt 0:00:41]} 14. c3 {[%emt 0:01:12]} (14. a4 $11) 14... Bxd5 $17 {[%emt 0:01:44]} 15. Bxd5 {[%emt 0:00:02]} (15. exd5 $142 dxc3 16. Ra2) 15... Nxd5 {[%emt 0:00:03]} 16. exd5 {[%emt 0:00:03]} dxc3 {[%emt 0:00:04]} 17. Qb3 {[%emt 0:00:19]} Rc8 {[%emt 0:00:40]} 18. Ra2 {[%emt 0:00:32]} Qd7 {[%emt 0:00:43]} 19. a4 {[%emt 0:00:17]} Rc7 {[%emt 0:00:24]} 20. Rc2 {[%emt 0:00:12]} Rfc8 {[%emt 0:00:04]} 21. Ba3 {[%emt 0:00:11]} f5 $1 {[%emt 0:00:26]} 22. Qb4 {[%emt 0:00:11]} Rc5 $2 {[%emt 0:00:14]} (22... e4 $19 23. dxe4 Rc4 24. Qxd6 Qxd6 25. Bxd6 fxe4 (25... Rxa4 26. e5 $15)) 23. Qb3 $1 $11 {[%emt 0:00:38]} R5c7 $2 {[%emt 0:00:01]} (23... e4 $11 24. Bxc5 dxc5 (24... exd3 25. Rxc3 Bxc3 26. Qxc3 $14)) 24. Qb4 $1 $19 {[%emt 0:00:02]} Qf7 {[%emt 0:00:05]} 25. Qb3 {[%emt 0:00:25] [#]} e4 $1 {[%emt 0:00:02][%mdl 512]} 26. dxe4 {[%emt 0:00:07] [#]} fxe4 {[%emt 0:00:05]} ({Better is} 26... Be5 $1 $19 27. Bc1 f4) 27. Rxe4 $17 {[%emt 0:00:09]} Qf5 {[%emt 0:00:13]} 28. Re6 {[%emt 0:00:20]} (28. f3 $17) 28... Rc4 $19 {[%emt 0:00:06]} 29. h3 $2 {[%emt 0:00:11] [#]} (29. Bc1) 29... Qxd5 $2 {[%emt 0:00:05]} (29... Rd4 $1 $19 {[%cal Rd4d1] has better winning chances. ( -> ...Rd1+)} 30. Rc1 Rd2 (30... Qxd5 $2 31. Qxd5 Rxd5 32. Rxg6 $19) (30... Rxd5 $2 {loses.} 31. Rxd6 Bh8 32. Qxd5+ $18)) 30. Rxd6 $17 {[%emt 0:00:05]} Qe4 $40 {[%emt 0:00:03][%mdl 128] Black goes for the king. Black is more active.} 31. Rd1 {[%emt 0:00:09] Inhibits Qe1+.} (31. Kf1 $17 {is a better defense.}) 31... Kh7 $19 {[%emt 0:00:02]} 32. a5 {[%emt 0:00:08]} (32. f3 $142 Qe3+ 33. Kh1) 32... bxa5 {[%emt 0:00:05]} 33. Bc1 {[%emt 0:00:06]} a4 {[%emt 0:00:04]} 34. Qa2 {[%emt 0:00:01]} Rb8 $2 {[%emt 0:00:09]} ({Black should try} 34... Qf5 $19 35. Re2 c2 (35... Qxb5 $2 36. Qc2 $19)) 35. f3 $2 {[%emt 0:00:09][%mdl 8192]} (35. Re2 $1 $11 {and White is okay.} c2 36. Rdd2) 35... Qe6 {[%emt 0:00:06] aiming for ...Qb6+.} 36. Re2 {[%emt 0:00:04]} Qf7 {[%emt 0:00:06]} 37. Be3 {[%emt 0:00:07]} (37. Re4 {might work better.} Rbc8 (37... c2 38. Rd2 $11) 38. h4) 37... Rxb5 {[%emt 0:00:03] Strongly threatening ...Rb2.} 38. Bf2 $2 {[%emt 0:00:05]} (38. Bc1) 38... Rb2 {[%emt 0:00:04] Weighted Error Value: White=0.66/Black=0.42.  Loses game:     	White=2     	---        Missed win:     	---       	Black=3      Mistake:       	White=7     	Black=2      Inaccurate:     	White=1     	Black=1      OK:         	White=9     	Black=13     Best:        	White=1     	Black=3      Strong:       	White=2     	---} 0-1

[Event "Romania GP Final-Prel 2024"]
[Site "Alba Iulia"]
[Date "2024.11.25"]
[Round "3.3"]
[White "Obada, Ema"]
[Black "Gavrilescu, David"]
[Result "0-1"]
[ECO "B90"]
[WhiteElo "2060"]
[BlackElo "2545"]
[Annotator "RC"]
[PlyCount "98"]
[EventDate "2024.11.22"]
[EventType "tourn"]
[EventCountry "ROU"]
[SourceTitle "playchess.com"]
[Source "ChessBase"]
[SourceQuality "1"]
[TimeControl "900+5"]

1. e4 {[%emt 0:00:02]} c5 {[%emt 0:00:01]} 2. Nf3 {[%emt 0:00:02]} d6 {[%emt 0:00:01]} 3. d4 {[%emt 0:00:02]} cxd4 {[%emt 0:00:01]} 4. Nxd4 {[%emt 0:00:01]} Nf6 {[%emt 0:00:01]} 5. Nc3 {[%emt 0:00:02]} a6 {[%emt 0:00:01]} 6. f3 {[%emt 0:00:02]} e5 {[%emt 0:00:02]} 7. Nb3 {[%emt 0:00:01]} Be6 {[%emt 0:00:02]} 8. Be3 {[%emt 0:00:02]} Be7 {[%emt 0:00:02]} 9. Qd2 {[%emt 0:00:02]} h5 {[%emt 0:00:08]} 10. Be2 {[%emt 0:00:57]} Nbd7 {[%emt 0:03:11]} 11. Nd5 {[%emt 0:01:04]} Nxd5 {[%emt 0:00:13]} 12. exd5 {[%emt 0:00:02]} Bf5 {[%emt 0:00:01]} 13. O-O {[%emt 0:00:14]} O-O {[%emt 0:00:21]} 14. f4 {[%emt 0:00:21]} exf4 {[%emt 0:00:01]} 15. Bxf4 {[%emt 0:00:27]} Rc8 {[%emt 0:01:32]} 16. Nd4 {[%emt 0:01:12]} Bg6 {[%emt 0:01:49]} 17. Kh1 {[%emt 0:00:39]} Bf6 {[%emt 0:01:19]} 18. c4 {[%emt 0:01:41]} Re8 {[%emt 0:00:17]} 19. Rae1 {[%emt 0:01:32]} Nc5 {[%emt 0:00:06]} 20. Nb3 {[%emt 0:04:55]} Ne4 {[%emt 0:01:13]} 21. Qb4 {[%emt 0:00:19]} Bxb2 {[%emt 0:00:55]} 22. Qxb7 {[%emt 0:00:25]} Qh4 {[%emt 0:01:43]} 23. Qa7 {[%emt 0:01:15]} Be5 {[%emt 0:00:27]} 24. Bxe5 {[%emt 0:00:24]} Rxe5 {[%emt 0:00:02]} 25. Kg1 {[%emt 0:00:26]} Nc3 {[%emt 0:00:24]} 26. g3 {[%emt 0:00:54]} Qg5 {[%emt 0:02:03]} 27. Qf2 {[%emt 0:00:07]} h4 {[%emt 0:00:22]} 28. Nd4 {[%emt 0:00:05]} hxg3 {[%emt 0:00:12]} 29. hxg3 {[%emt 0:00:01]} Ne4 {[%emt 0:00:05]} 30. Qg2 {[%emt 0:00:08]} Nxg3 {[%emt 0:00:09]} 31. Nf3 {[%emt 0:00:03]} Nxe2+ {[%emt 0:00:33]} 32. Rxe2 {[%emt 0:00:03]} Qxg2+ {[%emt 0:00:01]} 33. Rxg2 {[%emt 0:00:02]} Re4 {[%emt 0:00:01]} 34. Nd2 {[%emt 0:00:05]} Rd4 {[%emt 0:00:07]} 35. Re1 {[%emt 0:00:11]} Bf5 {[%emt 0:00:21]} 36. Re7 {[%emt 0:00:08]} Rb8 {[%emt 0:00:03]} 37. Rf2 {[%emt 0:00:02]} g6 {[%emt 0:00:01]} 38. Rc7 {[%emt 0:00:03]} Kg7 {[%emt 0:00:09]} 39. Nb3 {[%emt 0:00:03]} Rg4+ {[%emt 0:00:02]} 40. Kf1 {[%emt 0:00:06]} Rh8 {[%emt 0:00:03]} 41. Ke2 {[%emt 0:00:03]} Rh3 {[%emt 0:00:09]} 42. c5 {[%emt 0:00:10]} Re4+ {[%emt 0:00:10]} 43. Kd2 {[%emt 0:00:04]} dxc5 {[%emt 0:00:04]} 44. Rxc5 {[%emt 0:00:02]} Re5 {[%emt 0:00:02]} 45. Nc1 {[%emt 0:00:10]} Be4 {[%emt 0:00:06]} 46. Ne2 {[%emt 0:00:07]} Rd3+ {[%emt 0:00:03]} 47. Ke1 {[%emt 0:00:02]} Rdxd5 {[%emt 0:00:02]} 48. Rxd5 {[%emt 0:00:02]} Bxd5 {[%emt 0:00:01]} 49. Kd2 {[%emt 0:00:07]} Bxa2 {[%emt 0:00:02]} 0-1

[Event "Romania GP Final-Prel 2024"]
[Site "Alba Iulia"]
[Date "2024.11.25"]
[Round "3.4"]
[White "Kantor, Gergely"]
[Black "Manolache, Marius"]
[Result "1-0"]
[ECO "B48"]
[WhiteElo "2554"]
[BlackElo "2407"]
[Annotator "RC"]
[PlyCount "121"]
[EventDate "2024.11.22"]
[EventType "tourn"]
[EventCountry "ROU"]
[SourceTitle "playchess.com"]
[Source "ChessBase"]
[SourceQuality "1"]
[TimeControl "900+5"]

1. e4 {[%emt 0:00:05]} c5 {[%emt 0:00:05]} 2. Nf3 {[%emt 0:00:05]} e6 {[%emt 0:00:05]} 3. d4 {[%emt 0:00:05]} cxd4 {[%emt 0:00:05]} 4. Nxd4 {[%emt 0:00:05]} Nc6 {[%emt 0:00:05]} 5. Nc3 {[%emt 0:00:05]} Qc7 {[%emt 0:00:05]} 6. Be3 {[%emt 0:00:05]} a6 {[%emt 0:00:05]} 7. Qf3 {[%emt 0:00:05]} Nf6 {[%emt 0:00:12]} 8. O-O-O {[%emt 0:00:10]} h5 {[%emt 0:00:03]} 9. Nxc6 {[%emt 0:00:05]} dxc6 {[%emt 0:00:04]} 10. h3 {[%emt 0:00:54]} b5 {[%emt 0:00:27]} 11. e5 {[%emt 0:00:04]} Nd5 {[%emt 0:00:59]} 12. Bf4 {[%emt 0:00:09]} Bb7 {[%emt 0:01:44]} 13. Ne4 {[%emt 0:01:08]} O-O-O {[%emt 0:04:17]} 14. Nd6+ {[%emt 0:02:05]} Bxd6 {[%emt 0:01:22]} 15. exd6 {[%emt 0:00:02]} Qa5 {[%emt 0:00:04]} 16. Kb1 {[%emt 0:01:40]} c5 {[%emt 0:00:39]} 17. Bd2 {[%emt 0:00:48]} Qb6 {[%emt 0:00:35]} 18. Qxf7 {[%emt 0:01:07]} Rxd6 {[%emt 0:00:02]} 19. Qxg7 {[%emt 0:00:22]} Rhd8 {[%emt 0:00:01]} 20. Be2 {[%emt 0:00:24]} c4 {[%emt 0:00:25]} 21. Bg5 {[%emt 0:00:35]} R8d7 {[%emt 0:02:17]} 22. Qd4 {[%emt 0:01:06]} Qxd4 {[%emt 0:00:27]} 23. Rxd4 {[%emt 0:00:04]} e5 {[%emt 0:00:04]} 24. Rdd1 {[%emt 0:00:47]} Nf4 {[%emt 0:00:02]} 25. Bxf4 {[%emt 0:00:19]} exf4 {[%emt 0:00:02]} 26. Bxh5 {[%emt 0:00:46]} Bxg2 {[%emt 0:00:43]} 27. Bg4 {[%emt 0:00:14]} Kc7 {[%emt 0:00:01]} 28. Bxd7 {[%emt 0:01:39]} Bxh1 {[%emt 0:00:02]} 29. Rxd6 {[%emt 0:00:07]} Kxd6 {[%emt 0:00:02]} 30. Bc8 {[%emt 0:00:03]} a5 {[%emt 0:00:01]} 31. Ba6 {[%emt 0:01:00]} Kc5 {[%emt 0:00:04]} 32. h4 {[%emt 0:00:13]} Bf3 {[%emt 0:00:02]} 33. Kc1 {[%emt 0:00:29]} b4 {[%emt 0:00:03]} 34. Kd2 {[%emt 0:00:08]} Bh5 {[%emt 0:01:14]} 35. c3 {[%emt 0:00:19]} Bg6 {[%emt 0:00:03]} 36. Bb7 {[%emt 0:00:08]} Bh5 {[%emt 0:00:02]} 37. Be4 {[%emt 0:00:04]} Kd6 {[%emt 0:00:05]} 38. Bg2 {[%emt 0:00:12]} Kc5 {[%emt 0:00:01]} 39. Bh3 {[%emt 0:00:09]} Kd5 {[%emt 0:00:06]} 40. Bf1 {[%emt 0:00:01]} Bf7 {[%emt 0:00:03]} 41. Be2 {[%emt 0:00:09]} Kd6 {[%emt 0:00:05]} 42. Bf3 {[%emt 0:00:03]} Kc5 {[%emt 0:00:07]} 43. h5 {[%emt 0:00:13]} Kd6 {[%emt 0:00:01]} 44. Ke1 {[%emt 0:00:15]} Ke5 {[%emt 0:00:02]} 45. Kd2 {[%emt 0:00:01]} Kf6 {[%emt 0:00:12]} 46. Be2 {[%emt 0:00:05]} Bd5 {[%emt 0:00:08]} 47. Kc1 {[%emt 0:00:07]} Kg5 {[%emt 0:00:03]} 48. cxb4 {[%emt 0:00:04]} axb4 {[%emt 0:00:01]} 49. a3 {[%emt 0:00:01]} bxa3 {[%emt 0:00:05]} 50. bxa3 {[%emt 0:00:00]} f3 {[%emt 0:00:02]} 51. Bd1 {[%emt 0:00:06]} Kxh5 {[%emt 0:00:02]} 52. Kd2 {[%emt 0:00:04]} Kg4 {[%emt 0:00:05]} 53. Ke3 {[%emt 0:00:00]} c3 {[%emt 0:00:03]} 54. Kd4 {[%emt 0:00:03]} Ba8 {[%emt 0:01:12]} 55. Kxc3 {[%emt 0:00:01]} Kf4 {[%emt 0:00:03]} 56. Kd4 {[%emt 0:00:01]} Kg4 {[%emt 0:00:05]} 57. Ke3 {[%emt 0:00:03]} Bb7 {[%emt 0:00:01]} 58. a4 {[%emt 0:00:02]} Bc6 {[%emt 0:00:05]} 59. a5 {[%emt 0:00:01]} Bb7 {[%emt 0:00:01]} 60. Bc2 {[%emt 0:00:06]} Kg5 {[%emt 0:00:03]} 61. Be4 {[%emt 0:00:04]} 1-0

[Event "Romania GP Final-Prel 2024"]
[Site "Alba Iulia"]
[Date "2024.11.25"]
[Round "3.5"]
[White "Nedelcu, Teodor-Cosmin"]
[Black "Secheres, Adrian-Simion"]
[Result "0-1"]
[ECO "E70"]
[WhiteElo "2320"]
[BlackElo "2350"]
[Annotator "RC"]
[PlyCount "80"]
[EventDate "2024.11.22"]
[EventType "tourn"]
[EventCountry "ROU"]
[SourceTitle "playchess.com"]
[Source "ChessBase"]
[SourceQuality "1"]
[TimeControl "900+5"]

1. d4 {[%emt 0:00:01]} Nf6 {[%emt 0:00:03]} 2. c4 {[%emt 0:00:01]} g6 {[%emt 0:00:02]} 3. Nc3 {[%emt 0:00:02]} Bg7 {[%emt 0:00:03]} 4. e4 {[%emt 0:00:01]} d6 {[%emt 0:00:02]} 5. Bd3 {[%emt 0:00:02]} O-O {[%emt 0:00:11]} 6. Nge2 {[%emt 0:00:02]} Nc6 {[%emt 0:00:18]} 7. O-O {[%emt 0:00:09]} Nd7 {[%emt 0:00:43]} 8. Be3 {[%emt 0:01:09]} e5 {[%emt 0:00:57]} 9. d5 {[%emt 0:00:08]} Nd4 {[%emt 0:00:24]} 10. Bxd4 {[%emt 0:02:46]} exd4 {[%emt 0:00:01]} 11. Nb5 {[%emt 0:00:05]} Nc5 {[%emt 0:00:44]} 12. Nbxd4 {[%emt 0:00:52]} Re8 {[%emt 0:00:29]} 13. Qc2 {[%emt 0:00:41]} Qh4 {[%emt 0:01:16]} 14. Nf3 {[%emt 0:01:15]} Qh6 {[%emt 0:00:55]} 15. Rae1 {[%emt 0:04:17]} Bxb2 {[%emt 0:00:08]} 16. Ned4 {[%emt 0:01:11]} Bg4 {[%emt 0:02:51]} 17. Re3 {[%emt 0:00:09]} Bxf3 {[%emt 0:01:52]} 18. Qxb2 {[%emt 0:00:29]} Bg4 {[%emt 0:01:12]} 19. Bb1 {[%emt 0:00:46]} Qg7 {[%emt 0:00:53]} 20. Qd2 {[%emt 0:00:04]} Re7 {[%emt 0:00:10]} 21. Rfe1 {[%emt 0:00:58]} Rae8 {[%emt 0:00:07]} 22. f4 {[%emt 0:00:07]} Bd7 {[%emt 0:00:39]} 23. Nf3 {[%emt 0:00:37]} Bg4 {[%emt 0:00:36]} 24. Nd4 {[%emt 0:00:06]} Bc8 {[%emt 0:00:16]} 25. Nf3 {[%emt 0:00:04]} Bg4 {[%emt 0:00:31]} 26. Nd4 {[%emt 0:00:02]} Bc8 {[%emt 0:00:01]} 27. Nb3 {[%emt 0:00:13]} Nd7 {[%emt 0:00:28]} 28. Qa5 {[%emt 0:00:40]} Nf6 {[%emt 0:00:14]} 29. Qxa7 {[%emt 0:00:18]} Ng4 {[%emt 0:00:02]} 30. R3e2 {[%emt 0:00:03]} b6 {[%emt 0:00:25]} 31. h3 {[%emt 0:00:01]} Nf6 {[%emt 0:00:02]} 32. Qa3 {[%emt 0:00:07]} Nh5 {[%emt 0:00:03]} 33. Qc1 {[%emt 0:00:06]} f5 {[%emt 0:00:07]} 34. Bd3 {[%emt 0:00:16]} Qh6 {[%emt 0:00:23]} 35. exf5 {[%emt 0:00:03]} Rxe2 {[%emt 0:00:02]} 36. Rxe2 {[%emt 0:00:03]} Rxe2 {[%emt 0:00:03]} 37. Bxe2 {[%emt 0:00:04]} Nxf4 {[%emt 0:00:02]} 38. Qe3 {[%emt 0:00:06]} Qg5 {[%emt 0:00:24]} 39. Bg4 {[%emt 0:00:06]} Bxf5 {[%emt 0:00:07]} 40. Qg3 {[%emt 0:00:08]} Ne2+ {[%emt 0:00:04]} 0-1

[Event "Romania GP Final-Prel 2024"]
[Site "Alba Iulia"]
[Date "2024.11.25"]
[Round "3.6"]
[White "Cnejev, Vladimir-Alexandru"]
[Black "Ghimpu, Samuel-Timotei"]
[Result "1/2-1/2"]
[ECO "B12"]
[WhiteElo "2288"]
[BlackElo "2473"]
[Annotator "RC"]
[PlyCount "133"]
[EventDate "2024.11.22"]
[EventType "tourn"]
[EventCountry "ROU"]
[SourceTitle "playchess.com"]
[Source "ChessBase"]
[SourceQuality "1"]
[TimeControl "900+5"]

1. e4 {[%emt 0:00:04]} c6 {[%emt 0:00:08]} 2. d4 {[%emt 0:00:02]} d5 {[%emt 0:00:01]} 3. e5 {[%emt 0:00:03]} Bf5 {[%emt 0:00:56]} 4. g4 {[%emt 0:00:06]} Bd7 {[%emt 0:00:48]} 5. Nc3 {[%emt 0:00:10]} e6 {[%emt 0:00:08]} 6. Be3 {[%emt 0:00:30]} Bb4 {[%emt 0:00:28]} 7. h4 {[%emt 0:00:51]} c5 {[%emt 0:00:21]} 8. dxc5 {[%emt 0:00:45]} Nc6 {[%emt 0:00:11]} 9. Nf3 {[%emt 0:07:05]} Qc7 {[%emt 0:03:02]} 10. Be2 {[%emt 0:01:27]} h5 {[%emt 0:01:22]} 11. gxh5 {[%emt 0:00:09]} Nge7 {[%emt 0:00:26]} 12. Qd2 {[%emt 0:00:44]} Nf5 {[%emt 0:00:16]} 13. a3 {[%emt 0:00:19]} Bxc3 {[%emt 0:05:58]} 14. Qxc3 {[%emt 0:00:00]} Nxe3 {[%emt 0:01:08]} 15. Qxe3 {[%emt 0:00:14]} Rxh5 {[%emt 0:00:04]} 16. Ng5 {[%emt 0:00:59]} Rh6 {[%emt 0:00:21]} 17. f4 {[%emt 0:00:06]} Ne7 {[%emt 0:00:08]} 18. Bd3 {[%emt 0:00:20]} Rc8 {[%emt 0:00:10]} 19. b4 {[%emt 0:00:30]} f6 {[%emt 0:00:22]} 20. exf6 {[%emt 0:01:48]} gxf6 {[%emt 0:00:02]} 21. Nf3 {[%emt 0:00:11]} Kf7 {[%emt 0:00:19]} 22. Kf2 {[%emt 0:00:25]} Rg8 {[%emt 0:00:06]} 23. Rag1 {[%emt 0:00:04]} Rhh8 {[%emt 0:00:04]} 24. Rxg8 {[%emt 0:00:04]} Rxg8 {[%emt 0:00:01]} 25. h5 {[%emt 0:00:06]} Rh8 {[%emt 0:00:08]} 26. h6 {[%emt 0:00:04]} b6 {[%emt 0:00:05]} 27. cxb6 {[%emt 0:00:14]} Qxb6 28. Qxb6 {[%emt 0:00:00]} axb6 {[%emt 0:00:01]} 29. h7 {[%emt 0:00:02]} Ng6 {[%emt 0:00:11]} 30. Ke3 {[%emt 0:00:05]} Nf8 {[%emt 0:00:05]} 31. c3 {[%emt 0:00:05]} Kg7 {[%emt 0:00:01]} 32. Rg1+ {[%emt 0:00:02]} Kf7 {[%emt 0:00:01]} 33. Rh1 {[%emt 0:00:02]} Kg7 {[%emt 0:00:01]} 34. Rg1+ {[%emt 0:00:11]} Kf7 {[%emt 0:00:01]} 35. Nh4 {[%emt 0:00:06]} Nxh7 {[%emt 0:00:14]} 36. Ng6 {[%emt 0:00:04]} Rg8 {[%emt 0:00:04]} 37. Rh1 {[%emt 0:00:06]} Nf8 {[%emt 0:00:01]} 38. Nxf8 {[%emt 0:00:05]} Kxf8 {[%emt 0:00:02]} 39. Rh7 {[%emt 0:00:05]} Ke8 {[%emt 0:00:06]} 40. Kd4 {[%emt 0:00:05]} Rg4 {[%emt 0:00:03]} 41. Ke3 {[%emt 0:00:01]} Rg3+ {[%emt 0:00:00]} 42. Kd2 {[%emt 0:00:03]} Rf3 {[%emt 0:00:08]} 43. Rh8+ {[%emt 0:00:06]} Ke7 {[%emt 0:00:02]} 44. Rb8 {[%emt 0:00:07]} Rxf4 {[%emt 0:00:05]} 45. Rxb6 {[%emt 0:00:01]} e5 {[%emt 0:00:01]} 46. Bb5 {[%emt 0:00:10]} Bxb5 {[%emt 0:00:21]} 47. Rxb5 {[%emt 0:00:14]} Rf2+ {[%emt 0:00:06]} 48. Ke3 {[%emt 0:00:00]} Ra2 {[%emt 0:00:03]} 49. Rxd5 {[%emt 0:00:00]} Rxa3 {[%emt 0:00:01]} 50. Rc5 {[%emt 0:00:07]} Kd6 {[%emt 0:00:08]} 51. Ke4 {[%emt 0:00:07]} Ra1 {[%emt 0:00:08]} 52. Rc8 {[%emt 0:00:01]} Re1+ {[%emt 0:00:04]} 53. Kd3 {[%emt 0:00:04]} e4+ {[%emt 0:00:08]} 54. Kd4 {[%emt 0:00:08]} f5 {[%emt 0:00:06]} 55. Rf8 {[%emt 0:00:05]} Rd1+ {[%emt 0:00:06]} 56. Ke3 {[%emt 0:00:05]} Rd3+ {[%emt 0:00:01]} 57. Kf4 {[%emt 0:00:07]} Rf3+ {[%emt 0:00:12]} 58. Kg5 {[%emt 0:00:00]} e3 {[%emt 0:00:12]} 59. c4 {[%emt 0:00:07]} f4 {[%emt 0:00:06]} 60. Re8 {[%emt 0:00:05]} Rf2 {[%emt 0:00:02]} 61. b5 {[%emt 0:00:06]} Rc2 {[%emt 0:00:07]} 62. Kxf4 {[%emt 0:00:06]} Rxc4+ {[%emt 0:00:04]} 63. Kxe3 {[%emt 0:00:02]} Rb4 {[%emt 0:00:04]} 64. Re4 {[%emt 0:00:08]} Rxe4+ {[%emt 0:00:03]} 65. Kxe4 {[%emt 0:00:00]} Kc5 {[%emt 0:00:00]} 66. Ke5 {[%emt 0:00:02]} Kxb5 67. Ke4 {[%emt 0:00:20]} 1/2-1/2

[Event "Romania GP Final-Prel 2024"]
[Site "Alba Iulia"]
[Date "2024.11.25"]
[Round "3.7"]
[White "Lupulescu, Constantin"]
[Black "Nisipeanu, Liviu-Dieter"]
[Result "1/2-1/2"]
[ECO "E12"]
[WhiteElo "2591"]
[BlackElo "2596"]
[Annotator "RC"]
[PlyCount "27"]
[EventDate "2024.11.22"]
[EventType "tourn"]
[EventCountry "ROU"]
[SourceTitle "playchess.com"]
[Source "ChessBase"]
[SourceQuality "1"]
[TimeControl "900+5"]

1. d4 {[%emt 0:00:03]} Nf6 {[%emt 0:00:18]} 2. c4 {[%emt 0:00:01]} e6 {[%emt 0:00:01]} 3. Nf3 {[%emt 0:00:05]} b6 {[%emt 0:00:03]} 4. a3 {[%emt 0:00:22]} Ba6 {[%emt 0:00:02]} 5. e3 {[%emt 0:01:11]} d5 {[%emt 0:00:41]} 6. Nbd2 {[%emt 0:00:28]} Be7 {[%emt 0:00:36]} 7. b3 {[%emt 0:01:17]} O-O {[%emt 0:00:18]} 8. Bb2 {[%emt 0:00:05]} Nbd7 {[%emt 0:00:46]} 9. Be2 {[%emt 0:00:22]} c5 {[%emt 0:00:22]} 10. O-O {[%emt 0:00:33]} Rc8 {[%emt 0:02:08]} 11. cxd5 {[%emt 0:01:51]} Bxe2 {[%emt 0:00:03]} 12. Qxe2 {[%emt 0:00:02]} Nxd5 {[%emt 0:00:26]} 13. Rac1 {[%emt 0:00:48]} Rc7 {[%emt 0:00:46]} 14. h3 {[%emt 0:00:45]} 1/2-1/2

[Event "Romania GP Final-Prel 2024"]
[Site "Alba Iulia"]
[Date "2024.11.25"]
[Round "3.8"]
[White "Santos Latasa, Jaime"]
[Black "Sachilaru, Alexandru"]
[Result "1-0"]
[ECO "B12"]
[WhiteElo "2630"]
[BlackElo "2305"]
[Annotator "RC"]
[PlyCount "109"]
[EventDate "2024.11.22"]
[EventType "tourn"]
[EventCountry "ROU"]
[SourceTitle "playchess.com"]
[Source "ChessBase"]
[SourceQuality "1"]
[TimeControl "900+5"]

1. e4 {[%emt 0:00:02]} c6 {[%emt 0:00:03]} 2. d4 {[%emt 0:00:02]} d5 {[%emt 0:00:02]} 3. e5 {[%emt 0:00:03]} Bf5 {[%emt 0:00:03]} 4. Nf3 {[%emt 0:00:01]} e6 {[%emt 0:00:02]} 5. c3 {[%emt 0:00:02]} c5 {[%emt 0:00:08]} 6. Be3 {[%emt 0:00:01]} Nc6 {[%emt 0:00:55]} 7. dxc5 {[%emt 0:00:09]} Nge7 {[%emt 0:00:37]} 8. Na3 {[%emt 0:00:38]} a6 {[%emt 0:01:14]} 9. Nc2 {[%emt 0:00:01]} Bxc2 {[%emt 0:02:16]} 10. Qxc2 {[%emt 0:00:03]} Ng6 {[%emt 0:00:01]} 11. Bd4 {[%emt 0:00:17]} Qc7 {[%emt 0:00:25]} 12. Qa4 {[%emt 0:00:32]} Be7 {[%emt 0:00:13]} 13. Bb5 {[%emt 0:00:44]} O-O {[%emt 0:00:03]} 14. Bxc6 {[%emt 0:00:02]} bxc6 {[%emt 0:00:02]} 15. O-O {[%emt 0:00:02]} f5 {[%emt 0:00:57]} 16. Rfe1 {[%emt 0:00:15]} Nf4 {[%emt 0:02:39]} 17. Qc2 {[%emt 0:00:12]} Nh5 {[%emt 0:00:32]} 18. b4 {[%emt 0:01:35]} g5 {[%emt 0:00:14]} 19. Be3 {[%emt 0:00:09]} f4 {[%emt 0:01:43]} 20. Bd2 {[%emt 0:00:12]} Rae8 {[%emt 0:00:51]} 21. Nd4 {[%emt 0:00:10]} Qd7 {[%emt 0:00:14]} 22. f3 {[%emt 0:00:28]} Ng7 {[%emt 0:00:17]} 23. Qa4 {[%emt 0:00:05]} Rc8 {[%emt 0:00:09]} 24. Qxa6 {[%emt 0:00:03]} Nf5 {[%emt 0:00:13]} 25. Qd3 {[%emt 0:00:30]} h5 {[%emt 0:00:06]} 26. Nxf5 {[%emt 0:00:46]} Rxf5 {[%emt 0:00:01]} 27. c4 {[%emt 0:00:02]} Bf8 {[%emt 0:01:18]} 28. cxd5 {[%emt 0:00:08]} cxd5 {[%emt 0:00:00]} 29. Bc3 {[%emt 0:00:09]} g4 {[%emt 0:00:03]} 30. Bd4 {[%emt 0:00:03]} Qg7 {[%emt 0:00:30]} 31. Kh1 {[%emt 0:00:09]} Rg5 {[%emt 0:00:17]} 32. Rac1 {[%emt 0:00:49]} h4 {[%emt 0:00:05]} 33. fxg4 {[%emt 0:00:02]} Rxg4 {[%emt 0:00:01]} 34. Qf3 {[%emt 0:00:06]} Ra8 {[%emt 0:00:08]} 35. Re2 {[%emt 0:00:19]} Qg5 {[%emt 0:00:20]} 36. b5 {[%emt 0:00:22]} Rg3 {[%emt 0:00:18]} 37. hxg3 {[%emt 0:00:16]} hxg3 {[%emt 0:00:03]} 38. Kg1 {[%emt 0:00:03]} Ra4 {[%emt 0:00:23]} 39. Rd2 {[%emt 0:00:40]} Qh4 {[%emt 0:00:20]} 40. Kf1 {[%emt 0:00:06]} Rxd4 {[%emt 0:00:10]} 41. Rxd4 {[%emt 0:00:02]} Qh1+ {[%emt 0:00:01]} 42. Ke2 {[%emt 0:00:01]} Qxc1 {[%emt 0:00:02]} 43. Qxf4 {[%emt 0:00:02]} Qb2+ {[%emt 0:00:04]} 44. Rd2 {[%emt 0:00:02]} Qxb5+ {[%emt 0:00:01]} 45. Kf3 {[%emt 0:00:04]} Bxc5 {[%emt 0:00:12]} 46. Qg5+ {[%emt 0:00:09]} Kh7 {[%emt 0:00:11]} 47. Kxg3 {[%emt 0:00:08]} Qf1 {[%emt 0:00:03]} 48. Qh5+ {[%emt 0:00:18]} Kg7 {[%emt 0:00:09]} 49. Re2 {[%emt 0:00:03]} Bd4 {[%emt 0:00:17]} 50. Qf3 {[%emt 0:00:09]} Qa1 {[%emt 0:00:06]} 51. Qf6+ {[%emt 0:00:03]} Kh7 {[%emt 0:00:03]} 52. Qxe6 {[%emt 0:00:05]} Qc1 {[%emt 0:00:11]} 53. Qf7+ {[%emt 0:00:05]} Kh8 {[%emt 0:00:02]} 54. Qf8+ {[%emt 0:00:06]} Kh7 {[%emt 0:00:02]} 55. Qf5+ {[%emt 0:00:01]} 1-0